[Event "German Masters 2019"]
[Site "Magdeburg"]
[Date "2019.05.26"]
[Round "1.3"]
[White "Nisipeanu, Liviu-Dieter"]
[Black "Meier, Georg"]
[Result "1/2-1/2"]
[ECO "C10"]
[WhiteElo "2667"]
[BlackElo "2636"]
[Annotator "RC"]
[PlyCount "75"]
[EventDate "2019.05.26"]
[EventType "tourn"]
[EventCountry "GER"]
[SourceTitle "playchess.com"]
[Source "ChessBase"]
[SourceQuality "1"]
[TimeControl "40/5400+30:1800+30"]

1. e4 {[%emt 0:00:00]} e6 {[%emt 0:00:00]} 2. d4 {[%emt 0:00:00]} d5 {[%emt 0:00:05]} 3. Nc3 {[%emt 0:00:00]} dxe4 {[%emt 0:02:07]} 4. Nxe4 {[%emt 0:00:00]} Nd7 {[%emt 0:00:02]} 5. Nf3 {[%emt 0:00:15]} Ngf6 {[%emt 0:00:06]} 6. Bg5 {[%emt 0:00:12]} h6 {[%emt 0:00:15]} 7. Bxf6 {[%emt 0:00:09]} Nxf6 {[%emt 0:00:06]} 8. Bd3 {[%emt 0:00:05]} Nxe4 {[%emt 0:00:41]} 9. Bxe4 {[%emt 0:00:05]} c5 {[%emt 0:00:04]} 10. Qe2 {[%emt 0:01:27]} cxd4 {[%emt 0:08:01]} 11. O-O-O {[%emt 0:01:05]} Qb6 {[%emt 0:03:43]} 12. Rxd4 {[%emt 0:15:56]} Be7 {[%emt 0:00:13]} 13. c3 {[%emt 0:02:19]} Bf6 {[%emt 0:00:35]} 14. Rb4 {[%emt 0:01:10]} Qc5 {[%emt 0:10:04]} 15. Kb1 {[%emt 0:30:13]} Rb8 {[%emt 0:06:56]} 16. Rd1 {[%emt 0:04:22]} b5 {[%emt 0:07:41]} 17. Bd3 {[%emt 0:07:40]} a6 {[%emt 0:18:17]} 18. a4 {[%emt 0:02:38]} O-O {[%emt 0:03:31]} 19. Qe4 {[%emt 0:05:32]} Rd8 {[%emt 0:00:10]} 20. axb5 {[%emt 0:02:00]} axb5 {[%emt 0:05:55]} 21. Nd4 {[%emt 0:02:38]} Kf8 {[%emt 0:03:07]} 22. Qh7 {[%emt 0:08:06]} Ke7 {[%emt 0:01:37]} 23. Qe4 {[%emt 0:04:25]} Bb7 {[%emt 0:18:03]} 24. Qe3 {[%emt 0:00:57]} Bxd4 {[%emt 0:00:59]} 25. Rxd4 {[%emt 0:00:08]} Rxd4 {[%emt 0:00:05]} 26. cxd4 {[%emt 0:00:17]} Qa7 {[%emt 0:02:13]} 27. Rc1 {[%emt 0:03:53]} Bd5 {[%emt 0:02:43]} 28. Rc5 {[%emt 0:00:08]} Qa2+ {[%emt 0:00:44]} 29. Kc1 {[%emt 0:00:05]} Qa1+ {[%emt 0:00:28]} 30. Kc2 {[%emt 0:02:36]} Qa4+ {[%emt 0:04:45]} 31. Kd2 {[%emt 0:02:18]} Bc4 {[%emt 0:00:42]} 32. Rc7+ {[%emt 0:04:19]} Kf8 {[%emt 0:00:08]} 33. Rxf7+ {[%emt 0:00:52]} Kxf7 {[%emt 0:00:49]} 34. Qf4+ {[%emt 0:00:04]} Ke7 {[%emt 0:00:20]} 35. Qc7+ {[%emt 0:00:15]} Kf6 {[%emt 0:00:02]} 36. Qf4+ {[%emt 0:00:09]} Ke7 {[%emt 0:00:05]} 37. Qc7+ {[%emt 0:00:03]} Kf6 {[%emt 0:00:06]} 38. Qf4+ {[%emt 0:00:57] Ke5} 1/2-1/2

[Event "German Masters 2019"]
[Site "Magdeburg"]
[Date "2019.05.26"]
[Round "1.4"]
[White "Buhmann, Rainer"]
[Black "Miller, Eduard"]
[Result "1/2-1/2"]
[ECO "E73"]
[WhiteElo "2573"]
[BlackElo "2382"]
[Annotator "ChessBase"]
[PlyCount "93"]
[EventDate "2019.05.26"]
[EventType "tourn"]
[EventCountry "GER"]
[SourceTitle "playchess.com"]
[Source "ChessBase"]
[SourceQuality "1"]
[TimeControl "40/5400+30:1800+30"]

1. d4 {[%emt 0:00:00]} Nf6 {[%emt 0:00:00]} 2. c4 {[%emt 0:00:00]} g6 {[%emt 0:00:00]} 3. Nc3 {[%emt 0:00:00]} Bg7 {[%emt 0:00:00]} 4. e4 {[%emt 0:00:14]} d6 {[%emt 0:00:00]} 5. Be2 {[%emt 0:00:24]} O-O {[%emt 0:00:03]} 6. Be3 {[%emt 0:00:04]} e5 {[%emt 0:00:06]} 7. d5 {[%emt 0:00:10]} Na6 {[%emt 0:00:06]} 8. g4 {[%emt 0:00:24]} Nc5 {[%emt 0:00:05]} 9. f3 {[%emt 0:00:29]} a5 {[%emt 0:00:11]} 10. h4 {[%emt 0:03:13]} h5 {[%emt 0:00:06]} 11. g5 {[%emt 0:00:37]} Nfd7 {[%emt 0:00:06]} 12. Nh3 {[%emt 0:04:05]} Na6 {[%emt 0:00:50]} 13. b3 {[%emt 0:06:06]} Ndc5 {[%emt 0:06:46]} 14. Rb1 {[%emt 0:11:41]} c6 {[%emt 0:24:02]} 15. Nf2 {[%emt 0:11:11]} cxd5 {[%emt 0:09:05]} 16. cxd5 {[%emt 0:05:34]} f5 {[%emt 0:07:11]} 17. a3 {[%emt 0:10:13]} f4 {[%emt 0:12:23]} 18. Bd2 {[%emt 0:03:23]} Rf7 {[%emt 0:05:10]} 19. Kf1 {[%emt 0:08:40]} Bf8 {[%emt 0:05:34]} 20. Be1 {[%emt 0:01:02]} Be7 {[%emt 0:00:52]} 21. Bc4 {[%emt 0:10:33]} Qf8 {[%emt 0:03:38]} 22. b4 {[%emt 0:05:25]} axb4 {[%emt 0:00:08]} 23. axb4 {[%emt 0:00:02]} Nd7 {[%emt 0:00:10]} 24. Nd3 {[%emt 0:01:48]} Bd8 {[%emt 0:00:30]} 25. b5 {[%emt 0:05:15]} Nb6 {[%emt 0:14:05]} 26. Bb3 {[%emt 0:04:37]} Nc5 {[%emt 0:01:12]} 27. Nxc5 {[%emt 0:00:08]} dxc5 {[%emt 0:00:07]} 28. Ra1 {[%emt 0:01:58]} Rxa1 {[%emt 0:00:38]} 29. Qxa1 {[%emt 0:00:01]} Kh7 {[%emt 0:06:21]} 30. Kg2 {[%emt 0:00:24]} Bd7 {[%emt 0:00:45]} 31. Bf2 {[%emt 0:00:28]} c4 {[%emt 0:01:30]} 32. Bc2 {[%emt 0:00:32]} Nc8 {[%emt 0:00:20]} 33. Rb1 {[%emt 0:02:11]} Bb6 {[%emt 0:00:13]} 34. Na4 {[%emt 0:00:36]} Bxf2 {[%emt 0:00:33]} 35. Kxf2 {[%emt 0:00:02]} Nb6 {[%emt 0:01:49]} 36. Nxb6 {[%emt 0:02:21]} Qc5+ {[%emt 0:00:05]} 37. Kg2 {[%emt 0:00:07]} Qxb6 {[%emt 0:00:03]} 38. Qc3 {[%emt 0:00:45]} Bh3+ {[%emt 0:00:46]} 39. Kxh3 {[%emt 0:00:34]} Qf2 {[%emt 0:00:08]} 40. Qe1 {[%emt 0:00:06]} Qxc2 {[%emt 0:00:07]} 41. Rc1 {[%emt 0:06:30]} Qa2 {[%emt 0:03:51]} 42. Qf1 {[%emt 0:11:17]} Rc7 {[%emt 0:04:58]} 43. d6 {[%emt 0:04:14]} Rd7 {[%emt 0:00:10]} 44. Rxc4 {[%emt 0:00:40]} Qd2 {[%emt 0:00:33]} 45. Rc8 {[%emt 0:07:18]} Qxd6 {[%emt 0:05:55]} 46. Qc4 {[%emt 0:01:24]} Rg7 {[%emt 0:00:06]} 47. Qd5 {[%emt 0:05:51]} 1/2-1/2

[Event "German Masters 2019"]
[Site "Magdeburg"]
[Date "2019.05.28"]
[Round "3.4"]
[White "Miller, Eduard"]
[Black "Meier, Georg"]
[Result "1/2-1/2"]
[ECO "A08"]
[WhiteElo "2382"]
[BlackElo "2636"]
[Annotator "RC"]
[PlyCount "76"]
[EventDate "2019.05.26"]
[EventType "tourn"]
[EventCountry "GER"]
[SourceTitle "playchess.com"]
[Source "ChessBase"]
[SourceQuality "1"]
[TimeControl "40/5400+30:1800+30"]

1. Nf3 {[%emt 0:00:00]} d5 {[%emt 0:00:00]} 2. g3 {[%emt 0:00:00]} Nf6 {[%emt 0:00:00]} 3. Bg2 {[%emt 0:00:00]} e6 {[%emt 0:00:01]} 4. O-O {[%emt 0:00:00]} Be7 {[%emt 0:00:03]} 5. d3 {[%emt 0:00:00]} c5 {[%emt 0:00:13]} 6. Nbd2 {[%emt 0:00:03]} Nc6 {[%emt 0:00:07]} 7. e4 {[%emt 0:00:04]} O-O {[%emt 0:00:14]} 8. Re1 {[%emt 0:00:04]} Qc7 {[%emt 0:00:05]} 9. c3 {[%emt 0:01:05]} b6 {[%emt 0:05:23]} 10. Nf1 {[%emt 0:00:18]} h6 {[%emt 0:02:13]} 11. Bf4 {[%emt 0:05:37]} Qd7 {[%emt 0:00:15]} 12. e5 {[%emt 0:05:30]} Nh7 {[%emt 0:00:06]} 13. h4 {[%emt 0:02:29]} Bb7 {[%emt 0:02:49]} 14. Qd2 {[%emt 0:19:19]} Rfc8 {[%emt 0:00:34]} 15. g4 {[%emt 0:01:41]} Rc7 {[%emt 0:00:46]} 16. Ng3 {[%emt 0:00:43]} Qd8 {[%emt 0:00:37]} 17. g5 {[%emt 0:03:17]} hxg5 {[%emt 0:00:08]} 18. Nxg5 {[%emt 0:14:10]} b5 {[%emt 0:04:39]} 19. Nh5 {[%emt 0:03:36]} Bxg5 {[%emt 0:02:47]} 20. Bxg5 {[%emt 0:08:48]} Ne7 {[%emt 0:00:18]} 21. Re3 {[%emt 0:09:17]} Nxg5 {[%emt 0:01:14]} 22. Rg3 {[%emt 0:00:13]} Ng6 {[%emt 0:04:23]} 23. Rxg5 {[%emt 0:00:38]} d4 {[%emt 0:00:06]} 24. Bxb7 {[%emt 0:06:40]} Rxb7 {[%emt 0:00:28]} 25. Qe2 {[%emt 0:01:43]} dxc3 {[%emt 0:05:06]} 26. bxc3 {[%emt 0:00:09]} b4 {[%emt 0:00:03]} 27. Qe4 {[%emt 0:03:44]} Rab8 {[%emt 0:12:36]} 28. c4 {[%emt 0:05:14]} Rd7 {[%emt 0:02:21]} 29. Qg2 {[%emt 0:00:59]} Kf8 {[%emt 0:12:12]} 30. Nxg7 {[%emt 0:00:57]} Kxg7 {[%emt 0:00:08]} 31. h5 {[%emt 0:00:08]} Rxd3 {[%emt 0:00:07]} 32. Rxg6+ {[%emt 0:01:08]} fxg6 {[%emt 0:00:18]} 33. Qxg6+ {[%emt 0:00:06]} Kf8 {[%emt 0:03:27]} 34. Qh6+ {[%emt 0:00:19]} Ke7 {[%emt 0:00:11]} 35. Qg7+ {[%emt 0:00:21]} Ke8 {[%emt 0:00:03]} 36. Qg6+ {[%emt 0:00:07]} Ke7 {[%emt 0:00:17]} 37. Qg7+ {[%emt 0:00:05]} Ke8 {[%emt 0:00:03]} 38. Qg6+ {[%emt 0:00:04]} Ke7 {[%emt 0:00:04]} 1/2-1/2